fUST/lending_fUST_20240429
["ID","MTS","AMOUNT","RATE_DAILY","PERIOD"]
[324885580,1714396243466,-150.5,0.0003272,35]
[324885583,1714396243484,-159.71398494,0.00032727,4]
[324885585,1714396243494,-332.90691997,0.00032727,4]
[324885587,1714396243504,-603.57234398,0.00032727,4]
[324885589,1714396243514,-4319.56440288,0.00032728,4]
[324885591,1714396243524,-3900.31729301,0.00032728,4]
[324885593,1714396243533,-14236.56301843,0.00032729,7]
[324885595,1714396243543,-191.50617302,0.00032729,4]
[324885597,1714396243552,-154.76784823,0.00032729,4]
[324885598,1714396243561,-154.76784823,0.00032729,2]
[324885600,1714396243571,-1452.47576498,0.00032729,4]
[324885603,1714396243580,-2101.39185127,0.00032729,2]
[324885604,1714396243590,-622.07275705,0.00032729,4]
[324885607,1714396243600,-524.32629655,0.00032729,4]
[324885609,1714396243610,-22961.14751909,0.00032729,30]
[324885611,1714396243619,-151.0,0.00032729,2]
[324885613,1714396243628,-312.807001,0.00032729,2]
[324885615,1714396243638,-151.0,0.00032729,2]
[324885616,1714396243647,-218.797184,0.00032729,2]
[324885618,1714396243656,-312.807001,0.00032729,2]
[324885620,1714396243665,-208.506922,0.00032729,2]
[324885623,1714396243676,-466.666828,0.00032729,2]
[324885625,1714396243687,-466.666828,0.00032729,2]
[324885627,1714396243696,-151.0,0.00032729,2]
[324885629,1714396243706,-615.913097,0.00032729,2]
[324885630,1714396243716,-949.860443,0.00032729,2]
[324885632,1714396243726,-615.913097,0.00032729,2]
[324885633,1714396243735,-949.860443,0.00032729,2]
[324885634,1714396243744,-569.047712,0.00032729,2]
[324885635,1714396243753,-569.047712,0.00032729,2]
[324885636,1714396243762,-151.0,0.00032729,2]
[324885637,1714396243771,-1000.812377,0.00032729,2]
[324885638,1714396243782,-1000.812377,0.00032729,2]
[324885639,1714396243793,-151.0,0.00032729,2]
[324885640,1714396243803,-151.0,0.00032729,2]
[324885641,1714396243812,-190.869089,0.00032729,2]
[324885642,1714396243823,-190.869089,0.00032729,2]
[324885643,1714396243833,-150.5,0.00032777,35]
[324885644,1714396243842,-150.5,0.00032787,35]
[324885645,1714396243852,-150.5,0.00032787,35]
[324885646,1714396243864,-1092.826854,0.00032807,2]
[324885647,1714396243874,-151.0,0.00032807,2]
[324885648,1714396243884,-1092.826854,0.00032807,2]
[324885649,1714396243894,-256.396797,0.00032807,2]
[324885650,1714396243904,-256.396797,0.00032807,2]
[324885651,1714396243913,-151.0,0.00032807,2]
[324885652,1714396243923,-151.512951,0.00032807,2]
[324885653,1714396243933,-302.016416,0.00032807,2]
[324885654,1714396243942,-302.016416,0.00032807,2]
[324885655,1714396243952,-575.374773,0.00032807,2]
[324885656,1714396243963,-575.374773,0.00032807,2]
[324885657,1714396243973,-151.0,0.00032807,2]
[324885658,1714396243982,-432.604818,0.00032807,2]
[324885659,1714396243991,-432.604818,0.00032807,2]
[324885660,1714396244000,-151.0,0.00032807,2]
[324885661,1714396244010,-151.0,0.00032807,2]
[324885662,1714396244019,-254.632697,0.00032807,2]
[324885663,1714396244028,-312.807001,0.00032807,2]
[324885664,1714396244037,-151.0,0.00032807,2]
[324885665,1714396244046,-312.807001,0.00032807,2]
[324885666,1714396244055,-151.0,0.00032807,2]
[324885667,1714396244066,-151.0,0.00032807,2]
[324885668,1714396244076,-466.666828,0.00032807,2]
[324885669,1714396244085,-466.666828,0.00032807,2]
[324885670,1714396244095,-151.0,0.00032807,2]
[324885671,1714396244105,-615.913097,0.00032807,2]
[324885672,1714396244114,-949.860443,0.00032807,2]
[324885673,1714396244123,-615.913097,0.00032807,2]
[324885674,1714396244133,-949.860443,0.00032807,2]
[324885675,1714396244142,-569.047712,0.00032809,2]
[324885676,1714396244151,-569.047712,0.00032809,2]
[324885677,1714396244160,-151.0,0.00032809,2]
[324885678,1714396244169,-1000.812377,0.00032809,2]
[324885679,1714396244180,-1000.812377,0.00032809,2]
[324885680,1714396244189,-151.0,0.00032809,2]
[324885681,1714396244198,-190.869089,0.00032809,2]
[324885682,1714396244208,-190.869089,0.00032809,2]
[324885683,1714396244217,-371530.43691291,0.00032809,30]
[324885684,1714396244227,-150.0,0.00032817,2]
[324885685,1714396244237,-620.0,0.00032855,2]
[324885686,1714396244247,-500.0,0.00032876,2]
[324885687,1714396244256,-500.0,0.00032876,10]
[324885688,1714396244266,-500.0,0.00032876,2]
[324885689,1714396244275,-200.0,0.00032876,2]
[324885690,1714396244284,-500.0,0.00032876,2]
[324885691,1714396244293,-500.0,0.00032876,2]
[324885692,1714396244302,-262.39304904,0.00032876,2]
[324885693,1714396244311,-423.37102912,0.00032876,2]
[324885694,1714396244321,-500.0,0.00032876,2]
[324885695,1714396244330,-160.13,0.0003289,35]
[324885696,1714396244340,-603.03514377,0.00032975,7]
[324885697,1714396244348,-162.0,0.00033,2]
[324885698,1714396244359,-193.0160453,0.00033036,2]
[324885699,1714396244368,-153.0,0.00033036,2]
[324885700,1714396244377,-153.0,0.00033036,2]
[324885701,1714396244386,-153.0,0.00033036,2]
[324885702,1714396244396,-306.0,0.00033036,2]
[324885703,1714396244405,-306.0,0.00033036,2]
[324885704,1714396244415,-500.0,0.0003315,2]
[324885705,1714396244426,-999.0,0.0003315,16]
[324885706,1714396244435,-162.0,0.00033151,2]
[324885707,1714396244445,-558.85273028,0.00033424,2]
[324885708,1714396244454,-153.0,0.00033444,2]
[324885709,1714396244464,-2258.0,0.00033477,2]
[324885710,1714396244473,-166.72715655,0.00033529,4]
[324885711,1714396244483,-153.0,0.00033533,2]
[324885712,1714396244492,-153.0,0.00033533,2]
[324885713,1714396244501,-153.0,0.00033533,2]
[324885714,1714396244511,-324.8927227,0.00033533,2]
[324885715,1714396244520,-153.0,0.00033533,2]
[324885716,1714396244528,-153.0,0.00033533,2]
[324885717,1714396244538,-153.0,0.00033533,2]
[324885718,1714396244546,-153.0,0.00033533,2]
[324885719,1714396244556,-153.0,0.00033533,2]
[324885720,1714396244565,-153.0,0.00033533,2]
[324885721,1714396244575,-153.0,0.00033533,2]
[324885722,1714396244584,-153.0,0.00033533,2]
[324885723,1714396244593,-153.0,0.00033533,2]
[324885724,1714396244603,-153.0,0.00033533,2]
[324885725,1714396244612,-150.0,0.00033718,2]
[324885726,1714396244621,-306.0,0.00033807,2]
[324885727,1714396244630,-153.0,0.00033807,2]
[324885728,1714396244639,-153.0,0.00033807,2]
[324885729,1714396244649,-153.0,0.00033807,2]
[324885730,1714396244658,-153.0,0.00033807,2]
[324885731,1714396244667,-153.0,0.00033807,2]
[324885732,1714396244678,-306.0,0.00033807,2]
[324885733,1714396244687,-153.0,0.00033807,2]
[324885734,1714396244695,-153.0,0.00033807,2]
[324885735,1714396244705,-153.0,0.00033807,2]
[324885736,1714396244714,-153.0,0.00033807,2]
[324885737,1714396244724,-153.0,0.00033807,2]
[324885738,1714396244733,-153.0,0.00033807,2]
[324885739,1714396244742,-153.0,0.00033807,2]
[324885740,1714396244752,-153.0,0.00033807,2]
[324885741,1714396244763,-1206.07028754,0.0003381,30]
[324885742,1714396244772,-150.0,0.00033817,2]
[324885743,1714396244794,-501.86462815,0.000339,120]
[324885744,1714396244805,-950.59900252,0.0003392,3]
[324885745,1714396244815,-466.02150577,0.00034,4]
[324885746,1714396244941,-500.0,0.00034,2]
[324885747,1714396244952,-200.0,0.00034,30]
[324885748,1714396244962,-2145.30553456,0.00034043,6]
[324885749,1714396244971,-153.0,0.00034081,2]
[324885750,1714396244980,-153.0,0.00034081,2]
[324885751,1714396244990,-153.0,0.00034081,2]
[324885752,1714396244999,-153.0,0.00034081,2]
[324885753,1714396245008,-153.0,0.00034081,2]
[324885754,1714396245018,-153.0,0.00034081,2]
[324885755,1714396245027,-153.0,0.00034081,2]
[324885756,1714396245037,-153.0,0.00034081,2]
[324885757,1714396245046,-153.0,0.00034081,2]
[324885758,1714396245055,-500.0,0.00034219,5]
[324885759,1714396245064,-500.0,0.00034246,10]
[324885760,1714396245074,-999.0,0.00034246,18]
[324885761,1714396245083,-620.0,0.00034498,2]
[324885762,1714396245092,-607.5,0.00034521,2]
[324885763,1714396245103,-162.0,0.00034521,2]
[324885764,1714396245112,-150.0,0.00034718,2]
[324885765,1714396245122,-1271.37232962,0.00034728,12]
[324885766,1714396245131,-1000.0,0.000348,3]
[324885767,1714396245141,-1000.0,0.000348,3]
[324885768,1714396245151,-1000.0,0.000348,3]
[324885769,1714396245160,-862.0,0.000348,3]
[324885770,1714396245170,-1000.0,0.000348,3]
[324885771,1714396245181,-1000.0,0.000348,3]
[324885772,1714396245191,-26902.93113795,0.000349,2]
[324885773,1714396245201,-12752.41751678,0.00035,4]
[324885774,1714396245210,-597.60060645,0.00035,2]
[324885775,1714396245219,-154.82968734,0.00035,4]
[324885776,1714396245230,-10281.92294185,0.00035,2]
[324885777,1714396245240,-6886.51409181,0.00035,4]
[324885778,1714396245250,-33144.31949967,0.00035,7]
[324885779,1714396245260,-1354.90859021,0.00035,4]
[324885780,1714396245270,-446.93974003,0.00035,10]
[324885781,1714396245279,-1307.63933255,0.00035,7]
[324885782,1714396245289,-397.27679614,0.00035,30]
[324885783,1714396245299,-791.81686347,0.00035,30]
[324885784,1714396245310,-2102.2310673,0.00035,120]
[324885785,1714396245320,-9036.22,0.00035259,2]
[324885786,1714396245329,-9036.22,0.00035259,2]
[324885787,1714396245339,-9036.22,0.00035259,2]
[324885788,1714396245348,-9036.22,0.00035259,2]
[324885789,1714396245358,-9036.22,0.00035259,2]
[324885790,1714396245367,-9036.22,0.00035259,2]
[324885791,1714396245376,-9036.22,0.00035259,2]
[324885792,1714396245386,-9036.22,0.00035259,2]
[324885793,1714396245395,-9036.22,0.00035259,2]
[324885794,1714396245404,-9036.22,0.00035259,2]
[324885795,1714396245414,-151.0,0.00035259,2]
[324885796,1714396245424,-1067.904186,0.00035259,2]
[324885797,1714396245434,-1067.904186,0.00035259,2]
[324885798,1714396245444,-151.0,0.00035259,2]
[324885799,1714396245453,-296.991596,0.00035259,2]
[324885800,1714396245462,-151.0,0.00035259,2]
[324885801,1714396245472,-151.0,0.00035259,2]
[324885802,1714396245481,-312.807001,0.00035259,2]
[324885803,1714396245489,-151.0,0.00035259,2]
[324885804,1714396245498,-312.807001,0.00035259,2]
[324885805,1714396245507,-466.666828,0.00035259,2]
[324885806,1714396245516,-466.666828,0.00035259,2]
[324885807,1714396245525,-151.0,0.00035259,2]
[324885808,1714396245534,-615.913097,0.00035259,2]
[324885809,1714396245543,-949.860443,0.00035259,2]
[324885810,1714396245552,-615.913097,0.00035259,2]
[324885812,1714396245562,-949.860443,0.00035259,2]
[324885813,1714396245572,-999.0,0.00035342,20]
[324885814,1714396245581,-500.0,0.00035616,10]
[324885815,1714396245591,-1092.826854,0.00035616,2]
[324885816,1714396245600,-151.0,0.00035616,2]
[324885817,1714396245610,-1092.826854,0.00035616,2]
[324885818,1714396245618,-256.396797,0.00035616,2]
[324885819,1714396245627,-256.396797,0.00035616,2]
[324885820,1714396245637,-151.0,0.00035616,2]
[324885821,1714396245646,-302.016416,0.00035616,2]
[324885822,1714396245655,-302.016416,0.00035616,2]
[324885823,1714396245664,-575.374773,0.00035616,2]
[324885825,1714396245674,-575.374773,0.00035616,2]
[324885826,1714396245684,-151.0,0.00035616,2]
[324885827,1714396245693,-432.604818,0.00035616,2]
[324885828,1714396245703,-432.604818,0.00035616,2]
[324885829,1714396245712,-151.0,0.00035616,2]
[324885830,1714396245721,-151.0,0.00035616,2]
[324885831,1714396245730,-151.0,0.00035616,2]
[324885832,1714396245739,-569.047712,0.00035616,2]
[324885833,1714396245750,-569.047712,0.00035616,2]
[324885834,1714396245759,-151.0,0.00035616,2]
[324885835,1714396245768,-1000.812377,0.00035616,2]
[324885837,1714396245780,-1000.812377,0.00035616,2]
[324885839,1714396245792,-167.443342,0.00035616,2]
[324885841,1714396245802,-190.869089,0.00035616,2]
[324885843,1714396245811,-190.869089,0.00035616,2]
[324885845,1714396245822,-1347.781646,0.00035616,120]
[324885847,1714396245831,-38373.99,0.00035616,3]
[324885849,1714396245841,-417.0,0.00035635,2]
[324885850,1714396245850,-150.0,0.00035718,2]
[324885851,1714396245860,-154.98767111,0.0003589,2]
[324885852,1714396245870,-999.999999,0.00036,5]
[324885853,1714396245880,-61981.29818283,0.00036,14]
[324885855,1714396245889,-1828.44111052,0.00036,30]
[324885857,1714396245898,-151.0,0.00036,2]
[324885859,1714396245908,-1067.904186,0.00036,2]
[324885860,1714396245917,-1067.904186,0.00036,2]
[324885861,1714396245928,-569.047712,0.00036,2]
[324885862,1714396245939,-569.047712,0.00036,2]
[324885863,1714396245948,-151.0,0.00036,2]
[324885864,1714396245959,-1000.812377,0.00036,2]
[324885865,1714396245968,-1000.812377,0.00036,2]
[324885866,1714396245976,-500.0,0.0003602,5]
[324885867,1714396245986,-620.0,0.00036223,2]
[324885868,1714396245995,-256.21680638,0.0003624,2]
[324885869,1714396246004,-163.0,0.00036247,2]
[324885870,1714396246013,-161.029629,0.00036301,2]
[324885871,1714396246022,-999.0,0.00036438,22]
[324885872,1714396246031,-168.333333,0.00036781,2]
[324885873,1714396246040,-3162.0,0.00036825,2]
[324885874,1714396246049,-563.98872787,0.00036986,10]
[324885875,1714396246058,-2047.71591354,0.00037,2]
[324885876,1714396246068,-202.717343,0.00037018,2]
[324885877,1714396246077,-151.0,0.00037018,2]
[324885878,1714396246086,-2145.30553456,0.00037071,8]
[324885879,1714396246096,-98408.80011298,0.0003717,2]
[324885880,1714396246105,-151.0,0.0003717,2]
[324885881,1714396246114,-151.0,0.0003717,2]
[324885882,1714396246125,-1092.826854,0.0003717,2]
[324885883,1714396246134,-1092.826854,0.0003717,2]
[324885884,1714396246144,-256.396797,0.0003717,2]
[324885885,1714396246153,-256.396797,0.0003717,2]
[324885888,1714396246229,-151.0,0.0003717,2]
[324885889,1714396246238,-432.604818,0.0003717,2]
[324885890,1714396246247,-432.604818,0.0003717,2]
[324885891,1714396246256,-192.993578,0.0003717,2]
[324885892,1714396246266,-151.0,0.0003717,2]
[324885893,1714396246275,-312.807001,0.0003717,2]
[324885894,1714396246284,-151.0,0.0003717,2]
[324885895,1714396246293,-312.807001,0.0003717,2]
[324885896,1714396246302,-151.0,0.0003717,2]
[324885897,1714396246312,-151.0,0.0003717,2]
[324885898,1714396246321,-466.666828,0.0003717,2]
[324885899,1714396246330,-466.666828,0.0003717,2]
[324885900,1714396246339,-151.0,0.0003717,2]
[324885901,1714396246348,-615.913097,0.0003717,2]
[324885902,1714396246358,-949.860443,0.0003717,2]
[324885903,1714396246367,-615.913097,0.0003717,2]
[324885904,1714396246376,-949.860443,0.0003717,2]
[324885905,1714396246385,-190.869089,0.0003717,2]
[324885906,1714396246395,-190.869089,0.0003717,2]
[324885907,1714396246404,-3000.0,0.000375,32]
[324885908,1714396246414,-3000.0,0.0003751,32]
[324885909,1714396246423,-3000.0,0.0003752,32]
[324885910,1714396246432,-3000.0,0.0003753,32]
[324885911,1714396246441,-999.0,0.00037534,24]
[324885912,1714396246450,-3000.0,0.0003754,32]
[324885913,1714396246460,-3000.0,0.0003755,32]
[324885914,1714396246469,-3000.0,0.0003756,32]
[324885915,1714396246478,-3000.0,0.0003757,32]
[324885916,1714396246487,-3000.0,0.0003758,32]
[324885917,1714396246497,-3000.0,0.0003759,32]
[324885918,1714396246506,-151.0,0.000376,2]
[324885919,1714396246515,-3000.0,0.000376,32]
[324885920,1714396246523,-3000.0,0.0003761,32]
[324885921,1714396246533,-302.016416,0.0003761,2]
[324885922,1714396246542,-302.016416,0.0003761,2]
[324885923,1714396246551,-575.374773,0.0003761,2]
[324885924,1714396246561,-575.374773,0.0003761,2]
[324885925,1714396246570,-3000.0,0.0003762,32]
[324885926,1714396246579,-3000.0,0.0003763,32]
[324885927,1714396246588,-3000.0,0.0003764,32]
[324885928,1714396246597,-3000.0,0.0003765,32]
[324885929,1714396246606,-3000.0,0.0003766,32]
[324885930,1714396246615,-500.0,0.00037915,5]
[324885931,1714396246624,-1000.0,0.00038,2]
[324885932,1714396246633,-5009.79512819,0.00038,2]
[324885933,1714396246642,-1000.0,0.00038,120]
[324885934,1714396246652,-620.0,0.00038034,2]
[324885935,1714396246661,-999.0,0.0003863,26]
[324885936,1714396246670,-172.916667,0.00038826,2]
[324885937,1714396246681,-300.0,0.000389,5]
[324885938,1714396246690,-149.999999,0.0003899,3]
[324885939,1714396246699,-205.0,0.00039,60]
[324885940,1714396246708,-150.5,0.0003917,35]
[324885941,1714396246718,-150.5,0.0003918,35]
[324885942,1714396246730,-299.5,0.0003918,35]
[324885943,1714396246740,-10000.0,0.0003919,10]
[324885944,1714396246750,-167.52,0.0003919,35]
[324885945,1714396246759,-150.5,0.0003919,35]
[324885946,1714396246769,-150.5,0.0003919,35]
[324885947,1714396246780,-203.7672836,0.0003937,2]
[324885948,1714396246793,-203.7672836,0.0003937,2]
[324885949,1714396246803,-203.7672836,0.0003937,2]
[324885950,1714396246812,-203.7672836,0.0003937,2]
[324885951,1714396246823,-153.0,0.0003937,2]
[324885952,1714396246833,-153.0,0.0003937,2]
[324885953,1714396246842,-249.19,0.0003937,7]
[324885954,1714396246851,-150.5,0.0003938,7]
[324885955,1714396246862,-150.5,0.0003939,7]
[324885956,1714396246872,-232.10092761,0.00039397,30]
[324885957,1714396246882,-871799.17891686,0.000394,2]
[324885958,1714396246917,-966.01928999,0.000394,2]
[324885959,1714396247039,-389.07306561,0.000394,2]
[324885960,1714396247061,-320.27,0.000394,2]
[324885961,1714396247488,-631.07119748,0.00019178,2]
[324885962,1714396247498,-645.23019608,0.00019178,2]
[324885963,1714396247507,-500.0,0.00019178,2]
[324885964,1714396247516,-500.0,0.00019178,2]
[324885965,1714396247525,-500.0,0.00019178,2]
[324885966,1714396247534,-500.0,0.00019178,2]
[324885967,1714396247543,-500.0,0.00019178,2]
[324885968,1714396247552,-500.0,0.00019178,2]
[324885969,1714396247561,-500.0,0.00019178,2]
[324885970,1714396247571,-500.0,0.00019178,2]
[324885971,1714396247580,-401.90821988,0.00019178,2]
[324885972,1714396247589,-500.0,0.00019178,2]
[324885973,1714396247599,-500.0,0.00019178,2]
[324885974,1714396247608,-235.99227671,0.00019178,2]
[324885975,1714396247617,-588.0,0.000314,2]
[324885976,1714396247626,-1617.2636,0.000327,2]
[324885977,1714396247635,-489.10091332,0.00032876,2]
[324885978,1714396247643,-12162.64301897,0.000394,2]
[324885979,1714396247655,-627202.0851889,0.000394,2]
[324885980,1714396247852,-353.095,0.000394,2]
[324885981,1714396248024,-278.00917872,0.00019178,2]
[324885982,1714396248034,-500.0,0.00019178,2]
[324885983,1714396248043,-313.09423421,0.00019178,2]
[324885984,1714396248052,-17715.29658706,0.00032799,3]
[324885985,1714396248064,-36303.34463218,0.00032799,3]
[324885986,1714396381584,300.0,0.00014728,2]
[324885987,1714396500914,300.0,0.00014728,2]
[324885988,1714396651302,622.07275705,0.00014728,2]
[324885989,1714396661158,524.32629655,0.00014728,2]
[324885990,1714396885779,460.13643782,9.999e-05,2]
[324885991,1714397157106,-208.43513147,0.00016244,2]
[324885992,1714397299334,2485.822368,0.00015245,2]
[324885993,1714397340722,300.0,0.00014728,2]
[324885994,1714397363108,-167.94262329,0.00016047,2]
[324885995,1714397363129,-2807.21953425,0.00016146,2]
[324885996,1714397363152,-358.58554909,0.00016201,2]
[324885997,1714397367660,166.666666,0.00015312,2]
[324886032,1714397432437,-2451.538128,0.00016147,2]
[324886033,1714397432446,-361.424646,0.00016244,2]
[324886034,1714397432457,-884.66262729,0.00016244,2]
[324886035,1714397432466,-300.0,0.00016245,2]
[324886036,1714397432475,-300.0,0.00016245,2]
[324886037,1714397432485,-38763.57840038,0.00016246,2]
[324886038,1714397432495,-19954.032963,0.00016247,2]
[324886039,1714397432504,-1262.6177395,0.00016511,2]
[324886040,1714397432513,-167.94262328,0.00016754,2]
[324886041,1714397432523,-167.94262328,0.00017461,2]
[324886042,1714397432532,-423.46112111,0.00017589,2]
[324886043,1714397432541,-420.0,0.00017757,2]
[324886044,1714397432551,-420.0,0.00017869,2]
[324886045,1714397432559,-189.36782433,0.00018,2]
[324886046,1714397432570,-167.94262328,0.00018168,2]
[324886047,1714397432579,-1271.57,0.00018864,3]
[324886048,1714397432588,-2000.0,0.00018874,2]
[324886049,1714397432598,-98871.3607235,0.00018874,2]
[324886053,1714397438390,-37823.52438853,0.00018874,2]
[324886054,1714397438401,-273506.00412006,0.00018874,2]
[324886055,1714397438411,-167.94262328,0.00018875,2]
[324886056,1714397438422,-44444.0,0.00018875,2]
[324886057,1714397438432,-2864.72785824,0.000189,2]
[324886058,1714397438441,-192.24487994,0.00018973,2]
[324886059,1714397438453,-249.93308596,0.00018975,2]
[324886060,1714397438463,-307.2223827,0.00018977,2]
[324886061,1714397438473,-239.19602788,0.00019,2]
[324886062,1714397438483,-7934.04214632,0.00019,2]
[324886063,1714397438492,-9837.36669701,0.00019073,2]
[324886064,1714397438503,-2625.35839845,0.00019075,2]
[324886065,1714397438512,-277.89125552,0.00019075,2]
[324886066,1714397438522,-206.23930448,0.00019075,2]
[324886067,1714397438532,-4289.31098686,0.00019075,2]
[324886068,1714397438543,-653.46749878,0.00019075,2]
[324886069,1714397438552,-717.86833908,0.00019075,2]
[324886070,1714397438562,-4319.56440288,0.00019075,2]
[324886071,1714397438571,-159.71398494,0.00019075,2]
[324886072,1714397438581,-154.86061926,0.00019075,2]
[324886073,1714397438592,-283.38303378,0.00019075,2]
[324886074,1714397438601,-164.49019177,0.00019076,2]
[324886075,1714397438611,-155.80789349,0.00019076,2]
[324886076,1714397438621,-428.95683594,0.00019178,2]
[324886077,1714397438630,-593.92827026,0.00019178,2]
[324886078,1714397438640,-286.439693,0.00019178,2]
[324886079,1714397438649,-500.0,0.00019178,2]
[324886080,1714397438659,-500.0,0.00019178,2]
[324886081,1714397438669,-500.0,0.00019178,2]
[324886082,1714397438678,-500.0,0.00019178,2]
[324886083,1714397438687,-645.23019608,0.00019178,2]
[324886084,1714397438697,-331.07119748,0.00019178,2]
[324886085,1714397438710,-500.0,0.00019178,2]
[324886086,1714397438720,-500.0,0.00019178,2]
[324886087,1714397438729,-500.0,0.00019178,2]
[324886088,1714397438739,-500.0,0.00019178,2]
[324886089,1714397438748,-298.54679317,0.00019178,2]
[324886090,1714397438758,-282.94214609,0.00019178,2]
[324886091,1714397438767,-500.0,0.00019178,2]
[324886092,1714397438777,-500.0,0.00019178,2]
[324886093,1714397438786,-500.0,0.00019178,2]
[324886094,1714397438795,-500.0,0.00019178,2]
[324886095,1714397438805,-500.0,0.00019178,2]
[324886096,1714397438814,-500.0,0.00019178,2]
[324886097,1714397438823,-500.0,0.00019178,2]
[324886098,1714397438832,-500.0,0.00019178,2]
[324886099,1714397438842,-500.0,0.00019178,2]
[324886100,1714397438851,-500.0,0.00019178,2]
[324886101,1714397438861,-500.0,0.00019178,2]
[324886102,1714397438871,-500.0,0.00019178,2]
[324886103,1714397438880,-500.0,0.00019178,2]
[324886104,1714397438890,-500.0,0.00019178,2]
[324886105,1714397438899,-500.0,0.00019178,2]
[324886106,1714397438909,-500.0,0.00019178,2]
[324886107,1714397438919,-500.0,0.00019178,2]
[324886108,1714397438928,-500.0,0.00019178,2]
[324886109,1714397438938,-500.0,0.00019178,2]
[324886110,1714397438947,-500.0,0.00019178,2]
[324886111,1714397438960,-500.0,0.00019178,2]
[324886112,1714397438969,-500.0,0.00019178,2]
[324886113,1714397438979,-500.0,0.00019178,2]
[324886114,1714397438989,-161.029629,0.00019178,2]
[324886115,1714397438998,-161.162361,0.00019178,2]
[324886116,1714397439008,-587.0,0.00019409,2]
[324886117,1714397439017,-587.0,0.00019656,2]
[324886118,1714397439027,-153.43131253,0.00019799,2]
[324886119,1714397439037,-7872.20435228,0.00019998,2]
[324886120,1714397439046,-154.76784823,0.00019998,2]
[324886121,1714397439057,-154.76784823,0.0002,2]
[324886122,1714397439066,-80000.0,0.0002,2]
[324886123,1714397439076,-12577.23875182,0.0002,2]
[324886124,1714397439085,-525.01331286,0.0002,4]
[324886125,1714397439094,-278.30883524,0.0002,2]
[324886126,1714397439104,-67415.61392424,0.0002,2]
[324886127,1714397439113,-241.68429594,0.0002,2]
[324886128,1714397439123,-329.93912296,0.0002,2]
[324886129,1714397439134,-22961.14751909,0.0002,2]
[324886130,1714397439146,-154.76784823,0.0002,2]
[324886131,1714397439156,-285.19077408,0.0002,2]
[324886132,1714397439166,-154.82968734,0.0002,2]
[324886133,1714397439175,-299.68975861,0.0002,2]
[324886134,1714397439184,-320.78044824,0.0002,2]
[324886135,1714397439193,-154.82968734,0.0002,2]
[324886136,1714397439206,-200.0,0.0002,2]
[324886137,1714397439218,-160.0,0.00020015,2]
[324886138,1714397439227,-2543.14,0.00020234,3]
[324886139,1714397439237,-320.0,0.00020563,2]
[324886140,1714397439247,-2451.538128,0.00020636,2]
[324886141,1714397439349,-480.0,0.00021111,2]
[324886142,1714397439359,-823.0,0.00021215,2]
[324886143,1714397439369,-823.0,0.00021622,2]
[324886144,1714397439378,-640.0,0.00021659,2]
[324886145,1714397439388,-10000.0,0.00021918,2]
[324886146,1714397439397,-159.19819518,0.00022,2]
[324886147,1714397439407,-170.68510943,0.00022,2]
[324886148,1714397439416,-308.03084457,0.00022207,2]
[324886149,1714397439426,-572.277777,0.00022466,2]
[324886150,1714397439436,-172.916669,0.00022466,2]
[324886151,1714397439445,-714.0781204,0.00023,2]
[324886152,1714397439457,-263.0,0.0002319,2]
[324886153,1714397439467,-620.0,0.00023408,2]
[324886154,1714397439477,-620.1505081,0.00023408,2]
[324886155,1714397439487,-1152.0,0.00023784,2]
[324886156,1714397439497,-2864.72785824,0.000239,2]